Cogmind - Beta 14 @@@ ROGUE MODE // 2024.09.30 @ 20:42:54 Player: Wintermute Result: Destroyed by G-50 Soldier with Heavy Laser Performance ------------- Evolutions (3) 1500 Regions Visited (9) 1800 Robots Destroyed (134) 670 Value Destroyed (3977) 3977 Prototype IDs (6) 120 Alien Tech Used (0) 0 Bonus (403) 403 TOTAL SCORE: 8470 Bonus ------- High Alert Combat Kills 420 Friendly Fire -17 Cogmind --------- Core Integrity 0/700 Matter 197/300 Energy 62/100 System Corruption 0% Temperature Cool (43) Movement Flying (435) Ox5 Location -7/Factory Parts ------- > --- POWER (1) -------- (None) > --- PROPULSION (4) --- VTOL Module > --- UTILITY (5) ------ Large Storage Unit Machine Analyzer Improved Signal Interpreter Hacking Suite > --- WEAPON (3) ------- Improved Spread Laser > --- INVENTORY (15) --- Light Nuclear Core Light Nuclear Core Micro Nuclear Core Structural Scanner Improved Propulsion Shielding Improved Light Armor Plating Powered Armor Hacking Suite Hacking Suite Peak State ------------ > --- POWER ------------ Light Nuclear Core > --- PROPULSION ------- Titanium Leg Improved Carbon-fiber Leg Improved Carbon-fiber Leg Improved Carbon-fiber Leg > --- UTILITY ---------- Large Storage Unit Machine Analyzer Improved Sensor Array Improved Signal Interpreter Hacking Suite > --- WEAPON ----------- Enhanced Autogun Enhanced Autogun Gauss Rifle > --- INVENTORY -------- Light Nuclear Core Micro Nuclear Core Carbon-fiber Leg Improved Titanium Leg Structural Scanner Improved Sensor Array Improved Propulsion Shielding Improved Light Armor Plating Powered Armor Hacking Suite Hacking Suite Flak Gun Improved Grenade Launcher Katana [Rating: 47] Favorites ----------- Power Heavy Ion Engine Engine Heavy Ion Engine Power Core Light Nuclear Core Propulsion Aluminum Leg Treads Light Treads Leg Aluminum Leg Hover Unit Aerolev Unit Flight Unit VTOL Module Utility Large Storage Unit Device Structural Scanner Storage Large Storage Unit Processor Machine Analyzer Hackware Hacking Suite Weapon Improved Assault Rifle Energy Gun EM Pulse Gun Ballistic Gun Improved Assault Rifle Ballistic Cannon Light Cannon Launcher Improved Grenade Launcher Slashing Weapon Katana Build | -11 -10 -10 -9 -9 -9 -8 -8 -8 -7 ------- Run | Yrd Mat Min Mat Min Exi Min Mat Sto Fac Slots Evolved 6 | . . . 2 . . . 2 . 2 Power . | . . . . . . . . . . Propulsion 2 | . . . 1 . . . 1 . . Utility 3 | . . . . . . . 1 . 2 Weapon 1 | . . . 1 . . . . . . Parts Attached 97 | 8 15 . 10 . . 3 7 18 36 Power 10 | 1 1 . 2 . . . . 1 5 Engine 6 | 1 1 . 2 . . . . 1 1 Core 4 | . . . . . . . . . 4 Reactor . | . . . . . . . . . . Propulsion 44 | 2 4 . 7 . . 3 2 10 16 Treads 2 | 2 . . . . . . . . . Leg 33 | . 4 . 7 . . 3 2 10 7 Wheel . | . . . . . . . . . . Hover 6 | . . . . . . . . . 6 Flight 3 | . . . . . . . . . 3 Utility 10 | 2 3 . . . . . 1 . 4 Device 5 | 1 2 . . . . . . . 2 Storage 2 | 1 1 . . . . . . . . Processor 2 | . . . . . . . 1 . 1 Hackware 1 | . . . . . . . . . 1 Protection . | . . . . . . . . . . Artifact . | . . . . . . . . . . Weapon 33 | 3 7 . 1 . . . 4 7 11 Energy Gun 6 | 1 3 . . . . . . 1 1 Energy Cannon . | . . . . . . . . . . Ballistic Gun 20 | 2 3 . 1 . . . 3 5 6 Ballistic Cannon 3 | . 1 . . . . . 1 1 . Launcher 3 | . . . . . . . . . 3 Special Weapon . | . . . . . . . . . . Impact Weapon . | . . . . . . . . . . Slashing Weapon 1 | . . . . . . . . . 1 Piercing Weapon . | . . . . . . . . . . Special Melee Weapon . | . . . . . . . . . . Unidentified Prototypes 6 | . 1 . 2 . . . . 1 2 Parts Lost 32 | . 2 . . . . . 3 3 24 Power 4 | . . . . . . . . . 4 Propulsion 13 | . . . . . . . 1 2 10 Utility 2 | . . . . . . . . . 2 Weapon 13 | . 2 . . . . . 2 1 8 Highest Loss Streak 12 | . 1 . . . . . 1 2 12 To Critical Strikes . | . . . . . . . . . . Average Slot Usage (%) 96 | . 97 100 100 100 100 100 90 99 84 Engine 9 | . 13 14 11 11 11 11 9 9 1 Treads 2 | . 14 . . . . . . . . Leg 27 | . 13 28 33 33 33 33 29 35 17 Hover 1 | . . . . . . . . . 8 Device 10 | . 13 14 11 11 11 11 9 9 6 Storage 10 | . 14 14 11 11 11 11 9 9 7 Processor 3 | . . . . . . . 7 9 13 Ballistic Gun 26 | . 16 28 33 33 33 33 23 26 17 Peak Build Rating 47 | 9 13 13 19 19 19 21 24 32 47 Average Rating 21 | 6 8 13 18 19 19 20 22 27 37 On Entrance 16 | . 9 13 13 19 19 19 21 24 32 Naked Turns . | . . . . . . . . . . Heaviest Build 41 | 15 30 30 38 38 38 38 41 40 40 Greatest Support 71 | 40 40 20 30 30 30 35 45 54 71 Greatest Overweight (x) 6 | . 1 1 1 1 1 1 1 . 6 Average Overweight (x) . | . . 1 1 1 1 1 . . . Largest Inventory Capacity 15 | 8 15 15 15 15 15 15 15 15 15 Average Capacity 14 | 7 13 15 15 15 15 15 15 15 15 Most Carried 15 | 4 15 15 15 15 15 15 15 15 15 Average Carried 13 | 3 9 15 14 15 15 14 14 14 13 Final Capacity 15 | 8 15 15 15 15 15 15 15 15 15 Final Carried 15 | 4 15 15 15 15 15 15 15 15 9 Class Distribution -------------------- 64% | Skirmisher 26% | Mutant 7% | Scavenger-Skirmisher Dominant Class ---------------- Mutant | -10/Materials Mutant | -10/Mines Skirmisher | -9/Materials Skirmisher | -9/Mines Skirmisher | -9/Exiles Skirmisher | -8/Mines Skirmisher | -8/Materials Skirmisher | -8/Storage Skirmisher | -7/Factory Resources | -11 -10 -10 -9 -9 -9 -8 -8 -8 -7 ----------- Run | Yrd Mat Min Mat Min Exi Min Mat Sto Fac Matter Collected 3537 | 322 341 . 742 . . 239 292 917 684 Remotely . | . . . . . . . . . . Salvage Created 4905 | 100 582 . 1144 . . 325 305 1376 1073 Parts 285 | 10 34 . 64 . . 19 15 64 79 Haulers Intercepted 12 | . 1 . 4 . . . 1 5 1 Recyclers Shooed 5 | . . . . . . . . 5 . Parts Field Recycled . | . . . . . . . . . . Retrieved Matter . | . . . . . . . . . . Parts Self-Destructed . | . . . . . . . . . . Prevented . | . . . . . . . . . . Kills | -11 -10 -10 -9 -9 -9 -8 -8 -8 -7 ------- Run | Yrd Mat Min Mat Min Exi Min Mat Sto Fac Combat Hostiles Destroyed 103 | . 12 . 20 . . 11 8 23 29 Melee 6 | . . . . . . . . . 6 Guns 85 | . 8 . 20 . . 11 7 23 16 Cannons 1 | . . . . . . . 1 . . AOE 11 | . 4 . . . . . . . 7 Classes Destroyed 15 | 1 6 . 2 . . 1 1 1 3 Worker 4 | . 1 . 2 . . . . . 1 Builder 2 | . . . . . . . . 1 1 Tunneler 4 | 4 . . . . . . . . . Hauler 12 | . 1 . 4 . . . 1 5 1 Recycler 2 | . 1 . 1 . . . . . . Mechanic 1 | . . . . . . . . . 1 Operator 1 | . . . 1 . . . . . . Watcher 5 | . 2 . 2 . . . 1 . . Swarmer 32 | . 3 . 4 . . 7 3 1 14 Cutter 3 | . . . . . . . . . 3 Grunt 47 | . 9 . 12 . . 3 2 15 6 Duelist 1 | . . . . . . . 1 . . Sentry 15 | . . . 4 . . . 1 7 3 Hunter 4 | . . . . . . 1 1 . 2 Programmer 1 | . . . . . . . . . 1 Best Kill Streak 7 | 3 4 . 4 . . 7 6 7 6 Combat Bots Only 7 | . 3 . 3 . . 7 6 5 6 Max Kills in Single Turn 5 | 1 3 . 1 . . 1 1 2 5 Gunslinging . | . . . . . . . . . . Exploded 4 | . 2 . . . . . . . 4 Melee 1 | . . . . . . . . . 1 Uniques/NPCs Destroyed . | . . . . . . . . . . Combat | -11 -10 -10 -9 -9 -9 -8 -8 -8 -7 -------- Run | Yrd Mat Min Mat Min Exi Min Mat Sto Fac Hostile Shots Fired 635 | . 75 . 66 . . 43 48 91 312 Missed 188 | . 14 . 18 . . 10 7 19 120 Damage Taken 6486 | . 820 . 520 . . 411 555 1112 3068 Core 1249 | . 117 . 52 . . 111 183 78 708 Absorbed by Shields . | . . . . . . . . . . Regen/Repaired (Parts) 20 | . . . . . . . . 20 . Core Remaining (%) 66 | 100 . 53 . . . 59 . 52 . Volleys Fired 282 | 7 43 . 55 . . 25 25 77 50 Largest 3 | 2 2 . 3 . . 3 3 3 3 Hottest 123 | 40 75 . 69 . . 69 92 123 89 Shots Fired 749 | 14 82 . 165 . . 75 67 229 117 Gun 721 | 14 70 . 165 . . 75 56 227 114 Cannon 25 | . 12 . . . . . 11 2 . Launcher 3 | . . . . . . . . . 3 Special . | . . . . . . . . . . Kinetic 720 | 14 63 . 165 . . 75 67 225 111 Thermal 7 | . . . . . . . . 4 3 Explosive 3 | . . . . . . . . . 3 Electromagnetic 19 | . 19 . . . . . . . . Robot Hit Streak 22 | 4 10 . 16 . . 11 8 22 11 Robot Miss Streak 8 | 2 2 . 5 . . 4 4 8 8 Penetration Max . | . . . . . . . . . . Secondary Targets 7 | . 1 . 1 . . 2 2 . 1 Max Gunslinging Chain 1 | . 1 . 1 . . 1 1 . 1 Shots Hit Robots 495 | 8 61 . 98 . . 43 50 145 90 Core Hits 238 | 4 22 . 44 . . 22 22 56 68 Critical Kills . | . . . . . . . . . . Critical Parts Destroyed 1 | . . . . . . . . 1 . Critical Strikes 1 | . . . . . . . . 1 . Destroy 1 | . . . . . . . . 1 . Melee Attacks 21 | . . . . . . . . . 21 Impact . | . . . . . . . . . . Slashing 21 | . . . . . . . . . 21 Piercing . | . . . . . . . . . . Sneak Attacks . | . . . . . . . . . . Combat Hostiles . | . . . . . . . . . . Follow-up Attacks . | . . . . . . . . . . Damage Inflicted 9155 | 94 1095 . 1538 . . 636 809 2578 2405 Guns 7373 | 94 691 . 1531 . . 617 639 2531 1270 Cannons 335 | . 141 . . . . . 167 27 . Explosions 925 | . 260 . . . . . . . 665 Melee 434 | . . . . . . . . . 434 Ramming 88 | . 3 . 7 . . 19 3 20 36 Kinetic 7418 | 94 643 . 1531 . . 617 806 2544 1183 Thermal 361 | . 260 . . . . . . 14 87 Explosive 593 | . . . . . . . . . 593 Electromagnetic 261 | . 189 . . . . . . . 72 Impact . | . . . . . . . . . . Slashing 434 | . . . . . . . . . 434 Piercing . | . . . . . . . . . . Highest Corruption 1 | . . . . . . . . 1 . Average Corruption 1 | . . . . . . . . 1 . Corruption Purged . | . . . . . . . . . . Corruption Blocked . | . . . . . . . . . . Effects 3 | . . . . . . . . 3 . Message Errors 2 | . . . . . . . . 2 . Data Loss (major) 1 | . . . . . . . . 1 . Overload Shots . | . . . . . . . . . . Overflow Damage 125 | . 44 . . . . . . . 81 Projectiles . | . . . . . . . . . . Explosions 119 | . 44 . . . . . . . 75 Melee 6 | . . . . . . . . . 6 Knockbacks 11 | . 4 . . . . . 6 1 . Impact 1 | . . . . . . . . 1 . Kinetic 8 | . 2 . . . . . 6 . . Secondary 2 | . 2 . . . . . . . . Self-Inflicted Damage 612 | . 96 . . . . . . . 516 Shots 12 | . 3 . . . . . . . 9 Rammed 3 | . 2 . . . . . . . 1 Targets Rammed 20 | . 2 . 1 . . 5 1 6 5 Kicked 17 | . . . 1 . . 5 1 6 4 Crushed . | . . . . . . . . . . Highest Temperature 258 | . 258 . 12 . . 100 69 179 84 Average Temperature 42 | . 81 . 5 . . 29 23 51 25 Received Heat Transfer 1857 | . 396 . 129 . . 108 135 567 522 Siege Activations . | . . . . . . . . . . Robots Corrupted . | . . . . . . . . . . Combat Hostiles . | . . . . . . . . . . Parts Fried 1 | . . . . . . . . . 1 Impact Corruptions . | . . . . . . . . . . Robots Melted . | . . . . . . . . . . Combat Hostiles . | . . . . . . . . . . Parts Melted 1 | . . . 1 . . . . . . Heat Transferred 407 | . 300 . . . . . . 37 70 Parts Sabotaged . | . . . . . . . . . . Parts Stolen . | . . . . . . . . . . Parts Stripped . | . . . . . . . . . . Power Chain Reactions 4 | . 3 . . . . . . . 1 Alert | -11 -10 -10 -9 -9 -9 -8 -8 -8 -7 ------- Run | Yrd Mat Min Mat Min Exi Min Mat Sto Fac Peak Influence 808 | 20 210 24 363 106 . 230 401 594 808 Initial 270 | . 13 24 9 106 . . 31 169 270 Average 242 | 7 85 24 172 106 . 99 135 420 589 Maximum Alert Level 3 | . 1 . 1 . . 1 2 2 3 Low Security (%) 55 | 100 99 100 62 100 . 76 75 5 . Level 1 17 | . . . 37 . . 23 21 29 3 Level 2 25 | . . . . . . . 3 65 85 Level 3 1 | . . . . . . . . . 10 Level 4 . | . . . . . . . . . . Level 5 . | . . . . . . . . . . High Security . | . . . . . . . . . . Max Security . | . . . . . . . . . . Squads Dispatched 24 | . 3 . 3 . . . 2 4 12 Investigation 8 | . 1 . 1 . . . . 4 2 Extermination 1 | . . . . . . . . . 1 Reinforcement 10 | . 2 . 2 . . . 1 . 5 Assault 1 | . . . . . . . . . 1 Garrison 4 | . . . . . . . 1 . 3 Intercept . | . . . . . . . . . . Searches Triggered . | . . . . . . . . . . Construction Impeded 1 | . . . . . . . . . 1 Haulers Reinforced . | . . . . . . . . . . Active Scanning Responses . | . . . . . . . . . . Cargo Convoy Interrupts . | . . . . . . . . . . Stealth | -11 -10 -10 -9 -9 -9 -8 -8 -8 -7 --------- Run | Yrd Mat Min Mat Min Exi Min Mat Sto Fac Distress Signals 8 | . 2 . 3 . . . . 3 . Communications Jammed . | . . . . . . . . . . Distress Signals . | . . . . . . . . . . Times Spotted 160 | . 26 . 33 . . 11 17 33 40 Peak Tracking Total 9 | . 4 . 5 . . 7 5 6 9 Tactical Retreats 15 | . 3 . 2 . . . 4 3 3 Traps | -11 -10 -10 -9 -9 -9 -8 -8 -8 -7 ------- Run | Yrd Mat Min Mat Min Exi Min Mat Sto Fac Traps Triggered 4 | . 2 . . . . . . 2 . Indirectly . | . . . . . . . . . . Trap Hack Attempts . | . . . . . . . . . . Triggered . | . . . . . . . . . . Disarmed . | . . . . . . . . . . Reprogrammed . | . . . . . . . . . . Reused . | . . . . . . . . . . Traps Extracted . | . . . . . . . . . . Installed . | . . . . . . . . . . Triggered . | . . . . . . . . . . Machines | -11 -10 -10 -9 -9 -9 -8 -8 -8 -7 ---------- Run | Yrd Mat Min Mat Min Exi Min Mat Sto Fac Machines Disabled 9 | . . . 1 . . . . . 8 Max in Single Turn 4 | . . . 1 . . . . . 4 Machines Repaired . | . . . . . . . . . . Machines Dismantled . | . . . . . . . . . . Machines Sabotaged 1 | . 1 . . . . . . . . Overloaded Fab Kills . | . . . . . . . . . . Hacking | -11 -10 -10 -9 -9 -9 -8 -8 -8 -7 --------- Run | Yrd Mat Min Mat Min Exi Min Mat Sto Fac Machines Accessed 36 | . 4 1 5 . 4 . 2 14 6 Terminals 23 | . 4 . 2 . . . 1 12 4 Fabricators 1 | . . . . . . . . . 1 Repair Stations 4 | . . . 2 . . . . 2 . Recycling Units 1 | . . . . . . . 1 . . Scanalyzers 1 | . . . 1 . . . . . . Garrison Access 1 | . . . . . . . . . 1 Total Hacks 83 | . 10 1 16 . 4 . 7 33 12 Successful 41 | . 4 1 11 . 4 . 5 14 2 Failed 41 | . 5 . 5 . . . 2 19 10 Catastrophic 11 | . . . 2 . . . 1 5 3 Database Lockouts 1 | . 1 . . . . . . . . Manual 37 | . 7 . 4 . . . 3 17 6 Terminals 51 | . 10 . 4 . . . 3 27 7 Fabricators 2 | . . . . . . . . . 2 Repair Stations 10 | . . . 4 . . . . 6 . Recycling Units 4 | . . . . . . . 4 . . Scanalyzers 8 | . . . 8 . . . . . . Garrison Access 3 | . . . . . . . . . 3 Terminal Hacks 20 | . 3 1 1 . 4 . 2 9 . Record 4 | . . . . . 4 . . . . Part Schematic 3 | . . . . . . . . 3 . Robot Analysis 2 | . 1 . . . . . . 1 . Open Door 4 | . . 1 . . . . . 3 . Level Access Points 1 | . . . . . . . . 1 . Branch Access Points 1 | . . . . . . . 1 . . Terminal Index 1 | . . . 1 . . . . . . Recycling Unit Index 1 | . . . . . . . . 1 . Hauler Manifests 1 | . 1 . . . . . . . . Zone Layout 2 | . 1 . . . . . 1 . . Fabricator Hacks 2 | . . . . . . . . . 2 Load Schematic 1 | . . . . . . . . . 1 Build 1 | . . . . . . . . . 1 Repair Station Hacks 7 | . . . 2 . . . . 5 . Scan Component 5 | . . . 2 . . . . 3 . Repair 2 | . . . . . . . . 2 . Recycling Unit Hacks 2 | . . . . . . . 2 . . Report Inventory 1 | . . . . . . . 1 . . Retrieve Components 1 | . . . . . . . 1 . . Scanalyzer 8 | . . . 8 . . . . . . Insert Component 4 | . . . 4 . . . . . . Analyze 4 | . . . 4 . . . . . . Garrison Access Hacks . | . . . . . . . . . . Unauthorized Hacks 2 | . 1 . . . . . 1 . . Terminals 1 | . 1 . . . . . . . . Sabotage 1 | . 1 . . . . . . . . Fabricators . | . . . . . . . . . . Repair Stations . | . . . . . . . . . . Recycling Units 1 | . . . . . . . 1 . . Mask 1 | . . . . . . . 1 . . Scanalyzers . | . . . . . . . . . . Garrison Access . | . . . . . . . . . . Data Cores Recovered . | . . . . . . . . . . Used . | . . . . . . . . . . Hacking Detections 24 | . 3 . 5 . . . 2 8 6 Full Trace Events 6 | . . . 1 . . . . 3 2 Feedback Events . | . . . . . . . . . . Feedback Blocked . | . . . . . . . . . . Robot Schematics Acquired . | . . . . . . . . . . Robots Built . | . . . . . . . . . . Authchips . | . . . . . . . . . . Time . | . . . . . . . . . . Total Robot Build Rating . | . . . . . . . . . . Part Schematics Acquired 7 | . . . 4 . . . . 3 . Parts Built 2 | . . . . . . . . . 2 Authchips . | . . . . . . . . . . Time 73 | . . . . . . . . . 73 Total Part Build Rating 6 | . . . . . . . . . 6 Parts Repaired 2 | . . . . . . . . 2 . Time 91 | . . . . . . . . 91 . Parts Recycled . | . . . . . . . . . . Recycled Matter . | . . . . . . . . . . Retrieved Matter . | . . . . . . . . . . Retrieved Components 2 | . . . . . . . 2 . . Parts Scanalyzed 4 | . . . 4 . . . . . . Part Schematics Acquired 4 | . . . 4 . . . . . . Parts Damaged . | . . . . . . . . . . Bothacking | -11 -10 -10 -9 -9 -9 -8 -8 -8 -7 ------------ Run | Yrd Mat Min Mat Min Exi Min Mat Sto Fac Used RIF Installer . | . . . . . . . . . . Robots Hacked . | . . . . . . . . . . Non-combat . | . . . . . . . . . . Combat . | . . . . . . . . . . Robot Hacks Applied . | . . . . . . . . . . Relay Couplers Released . | . . . . . . . . . . Fabnet Peak Effective % . | . . . . . . . . . . Robots Rewired . | . . . . . . . . . . Allies Hacked . | . . . . . . . . . . Hacks Repelled . | . . . . . . . . . . Allies | -11 -10 -10 -9 -9 -9 -8 -8 -8 -7 -------- Run | Yrd Mat Min Mat Min Exi Min Mat Sto Fac Total Allies . | . . . . . . . . . . Largest Group . | . . . . . . . . . . Highest-Rated Group . | . . . . . . . . . . Highest-Rated Ally . | . . . . . . . . . . Total Orders . | . . . . . . . . . . Ally Attacks . | . . . . . . . . . . Total Damage . | . . . . . . . . . . Kills . | . . . . . . . . . . Allies Corrupted . | . . . . . . . . . . Allies Melted . | . . . . . . . . . . Intel | -11 -10 -10 -9 -9 -9 -8 -8 -8 -7 ------- Run | Yrd Mat Min Mat Min Exi Min Mat Sto Fac Robot Analysis Total 2 | . 1 . . . . . . 1 . Derelict Logs Recovered . | . . . . . . . . . . Drone Launches . | . . . . . . . . . . Drone Recoveries . | . . . . . . . . . . Exploration | -11 -10 -10 -9 -9 -9 -8 -8 -8 -7 ------------- Run | Yrd Mat Min Mat Min Exi Min Mat Sto Fac Turns Passed 7555 | 160 1229 147 1289 235 829 1086 357 1127 1096 Spaces Moved 3822 | 80 584 78 529 124 437 518 150 578 744 Core 6 | 5 . . . . . . . . 1 Treads 394 | 75 319 . . . . . . . . Legs 3082 | . 265 78 529 124 437 518 150 578 403 Wheels . | . . . . . . . . . . Hover 331 | . . . . . . . . . 331 Flight 9 | . . . . . . . . . 9 Fastest Speed 38 | 50 160 190 190 190 190 190 120 120 38 Average Speed 158 | 153 174 190 190 190 190 190 170 122 100 Slowest Speed 355 | 160 240 190 190 190 190 190 190 126 355 Overloaded Moves . | . . . . . . . . . . Propulsion Burnouts . | . . . . . . . . . . Robots Hopped . | . . . . . . . . . . Cave-ins Triggered . | . . . . . . . . . . Exploration Rate (%) 49 | 6 69 24 56 25 92 94 23 70 31 Regions Visited 9 Branch Regions 5 Pre-discovered Areas . | . . . . . . . . . . Known Exits Taken 2 | . . . . . . . 1 1 . Unknown Exits Taken 7 | 1 1 1 1 1 1 1 . . . Scrap Searched 2 | . . . . 1 . 1 . . . Spaces Dug . | . . . . . . . . . . Terrain Destroyed 56 | . 16 . . . . . . . 40 Melee . | . . . . . . . . . . Projectile . | . . . . . . . . . . AOE 56 | . 16 . . . . . . . 40 Terrain Rammed . | . . . . . . . . . . Walls Destroyed . | . . . . . . . . . . Machines Disabled . | . . . . . . . . . . Actions | -11 -10 -10 -9 -9 -9 -8 -8 -8 -7 --------- Run | Yrd Mat Min Mat Min Exi Min Mat Sto Fac Total 4766 | 100 708 77 703 124 436 561 195 869 993 Wait 398 | 2 38 . 67 1 . 3 9 160 118 Move 3813 | 79 583 77 528 123 436 517 149 577 744 Hop . | . . . . . . . . . . Pick Up 71 | 4 19 . 19 . . 3 3 12 11 Fast Attach 25 | 7 4 . . . . . 3 2 9 Attach 24 | . 5 . 2 . . . 3 1 13 Detach 2 | . 1 . . . . . . . 1 Swap 48 | 1 6 . 8 . . 3 1 15 14 Drop 62 | . 7 . 23 . . 5 1 19 7 Fire 282 | 7 43 . 55 . . 25 25 77 50 Melee 21 | . . . . . . . . . 21 Ram 1 | . . . . . . . . . 1 Kick 17 | . . . 1 . . 5 1 6 4 Crush 2 | . 2 . . . . . . . . Escape Stasis . | . . . . . . . . . . Rewire . | . . . . . . . . . . Trap . | . . . . . . . . . . Miscellaneous . | . . . . . . . . . . Route ------- -11/Scrapyard -10/Materials (discovered 3 exits: *Mat x2 / *Min) -10/Mines -9/Materials (discovered 3 exits: *Mat x2 / [*Min]) -9/Mines -9/Exiles (discovered 2 exits: [*Min x2]) -8/Mines (discovered 2 exits: *Mat x2) -8/Materials (discovered 2 exits: *Sto x2) -8/Storage -7/Factory History --------- Turn | Location | Event 13 | -11/Scrapyard | Discovered new exit (range 15) 161 | -11/Scrapyard | Entered Materials 163 | -10/Materials | Central database locked down 314 | -10/Materials | Build established: Mutant 389 | -10/Materials | Discovered new exit (range 5) 763 | -10/Materials | Discovered new exit (range 17) 888 | -10/Materials | Discovered new exit (range 13) 1390 | -10/Materials | Entered Mines 1474 | -10/Mines | Discovered new exit (range 8) 1519 | -10/Mines | Met a Derelict who couldn't figure out how to use a Trap Extractor 1537 | -10/Mines | Entered Materials 1537 | -9/Materials | Evolved 2 slots: Propulsion x1, Weapon x1 1836 | -9/Materials | Build established: Skirmisher 2012 | -9/Materials | Discovered new exit (range 3) 2540 | -9/Materials | Discovered new exit (range 8) 2745 | -9/Materials | Discovered new exit (range 16) 2826 | -9/Materials | Entered Mines 3054 | -9/Mines | Deemed a non-threat by the Exiles lab entrance 3054 | -9/Mines | Discovered new exit (range 5) 3061 | -9/Mines | Entered Exiles 3061 | -9/Exiles | Found Exiles lab abandoned 3086 | -9/Exiles | Discovered new exit (range 15) 3869 | -9/Exiles | Discovered new exit (range 11) 3890 | -9/Exiles | Entered Mines 3972 | -8/Mines | Discovered new exit (range 6) 4467 | -8/Mines | Destroyed 7 combat bots 4482 | -8/Mines | Discovered new exit (range 2) 4976 | -8/Mines | Entered Materials 4976 | -8/Materials | Evolved 2 slots: Propulsion x1, Utility x1 4997 | -8/Materials | Identified exit to Storage 5259 | -8/Materials | Garrison activated, responded to threat 5333 | -8/Materials | Entered Storage 5500 | -8/Storage | Repaired Imp. Signal Interpreter 5589 | -8/Storage | Build established: Scavenger-Skirmisher 6158 | -8/Storage | Build established: Skirmisher 6287 | -8/Storage | Identified exit to Factory 6449 | -8/Storage | Repaired Broken Lgt. Nuclear Core 6460 | -8/Storage | Entered Factory 6460 | -7/Factory | Evolved 2 slots: Utility x2 6898 | -7/Factory | Lost 3 parts (1p1n1w) 6900 | -7/Factory | Found Powered Armor 6985 | -7/Factory | Build established: Mutant 7214 | -7/Factory | Fabricated Imp. Sensor Array (x2) 7259 | -7/Factory | Garrison activated, responded to threat 7260 | -7/Factory | First assault squad dispatched 7347 | -7/Factory | Build established: Skirmisher 7448 | -7/Factory | Core integrity fell below 50% 7511 | -7/Factory | Core integrity fell below 20% 7518 | -7/Factory | Lost 12 parts (1p5n1u5w) 7556 | -7/Factory | Destroyed by G-50 Soldier with Heavy Laser Last Messages --------------- 07481_ Acquired 25 matter. 07487_ Destroyed VTOL Module. 07487_ Carbon-fiber Leg destroyed. 07495_ S-27 Virus destroyed. 07504_ R-06 Scavenger collects Lgt. Nuclear Core. 07505_ S-27 Virus destroyed. 07519_ Imp. Titanium Leg destroyed. 07523_ Katana destroyed. 07525_ K-01 Serf collects debris. 07528_ Acquired VTOL Module. 07529_ K-01 Serf collects debris. 07531_ M-13 Machinist repairs Particle Gun. 07532_ K-01 Serf collects debris. 07534_ Acquired VTOL Module. 07540_ VTOL Module destroyed. 07546_ R-06 Scavenger collects Lgt. Nuclear Core. 07549_ VTOL Module destroyed. 07550_ Acquired Prototype Energy Gun. 07550_ Identified Imp. Spread Laser. 07554_ G-47 Trooper destroyed. Map ----- +----------------------------------------------------+ | ???????????????????"""?"""???????????????????????? | | ??????????????????????????????""?????????????????? | | ?????????????????????????????""S?????????????????? | | ?????????????????????????????""??????????????????? | | ???????????????????????"T"???????????????????????? | | ???????????????????????"""???????????????????????? | | ?????????????????????????????????????????????????? | | ?????????????????????????????????????????????????? | | ?????????????????????????????????????????????????? | | ?????????????????????????????????????????????????? | | ??????????????????????????????"""????????????????? | | ??????????????????????????????"""????????????????? | | ??????????????????????????????"""????????????????? | | ?????????????????????????????????????????????????? | | ?????????????????????????????????????????????????? | | ?????????????????????????????????????????????????? | | ?????????????????????????????????????????????????? | | ?????????????????????????????????????????????????? | | ?????????????????????????????????????????????????? | | ?????????????????????????????????????????????????? | | ??????????????????????##########?????????????????? | | ??????????????????????# ?????????????????? | | ??????????????????????# """""""???????????????? | | ??????????????????????# """""""???????????????? | | ??????????????????????# """"""" ??????????????? | | ??????????????????????# @ """"""" #?????????????? | | ??????????????????????# #?????????????? | | ??????????????????????# """"""" #?????????????? | | ??????????????????????# """"""" #?????????????? | | ??????????????????????# g """"""" #?????????????? | | ??????????????????????# %""""""" #?????????????? | | ??????????????????????# #?????????????? | | ??????????????????????# m *% #?????????????? | | ??????????????????????#######+##########?????????? | | ??????????????????????????#=%%%* #?????????? | | ??????????????????????????# =* #?????????? | | ??????????????????????????# ^ """" #?????????? | | ??????????????????????????# """""" ##????????? | | ??????????????????????????# ""F "" T#????????? | | ??????????????????????????#^ """ ##????????? | | ????????????????????????### #????????? | | ????????????????????????""" #????????? | | ????????????????????????"R #????????? | | ????????????????????????""" #########" | | ????????????????????????## | | ????????????????????? | | ?????????????????????"""" | | ????????????????????""S"" | | ????????????????????""?"" # | | ???????????????????????? ?# ############ | +----------------------------------------------------+ Best States ------------- Heat Dissipation 34 Energy Generation 16 Energy Capacity 290 Matter Stores 300 Matter Capacity 300 Sight Range 16 Robot Scan Range 15 Terrain Scan Range 16 Terrain Scan Density 10 Evasion (%) 57 Recoil Reduction 2 Offensive Hacking 10 Item Schematics ----------------- Huge Storage Unit | -9/Materials | Scanalyzed Lrg. Matter Pod | -9/Materials | Scanalyzed Mni. Grenade Launcher | -9/Materials | Scanalyzed Imp. Terrain Scanner | -9/Materials | Scanalyzed Med. Storage Unit | -8/Storage | Hacked Imp. Signal Interpreter | -8/Storage | Hacked Imp. Sensor Array | -8/Storage | Hacked Robot Schematics ------------------ None Fabricated ------------ Imp. Sensor Array | x2 | -7/Factory Alien Tech Used ----------------- None Achievements -------------- Brute Force I Spy Challenges ------------ None Game ------ Seed CommThermalRigger Manual? 0 Play Time 01:22:24 Cumulative 28.3 hours Start 2024.09.30 @ 16:09:50 End 2024.09.30 @ 20:42:54 Sessions 9 Manual Loads 0 Difficulty Rogue Special Mode None Game No. 16 Rogue 16 Adventurer 0 Explorer 0 Win Type - Total 2 Types 2/0/0/0/0/0/0/0/0 Lore% 23 Gallery% 20 Achievement% 28 Wizard Run 0 Options --------- Layout 0 ASCII 0 Keyboard 1 Movement Vi Keybinds 0 Fullscreen 2 Font 36/X11++ Map View 76x50 Zoom Use 0% Tactical HUD 1 Map Filters NONE Filters NONE Steam 1 RUN: 5d9f71dd-3a75-49df-b125-f4ca25303007